fUSD/lending_fUSD_20240425
["ID","MTS","AMOUNT","RATE_DAILY","PERIOD"]
[323458780,1714006242644,-500.0,0.00011996,2]
[323458781,1714006242654,-500.0,0.00011996,2]
[323458782,1714006242663,-500.0,0.00011996,2]
[323458783,1714006242673,-500.0,0.00011996,2]
[323458784,1714006242682,-279.92,0.00011996,2]
[323458785,1714006242692,-228.44,0.00011996,2]
[323458786,1714006242702,-500.0,0.00011996,2]
[323458787,1714006242711,-500.0,0.00011996,2]
[323458788,1714006242720,-500.0,0.00011996,2]
[323458789,1714006242729,-701.077774,0.00011996,2]
[323458790,1714006242739,-500.0,0.00011996,2]
[323458791,1714006242748,-701.077774,0.00011996,2]
[323458792,1714006242757,-500.0,0.00011996,2]
[323458793,1714006242765,-500.0,0.00011996,2]
[323458794,1714006242774,-500.0,0.00011996,2]
[323458795,1714006242783,-500.0,0.00011996,2]
[323458796,1714006242794,-382.51,0.00011996,2]
[323458797,1714006242803,-500.0,0.00011996,2]
[323458798,1714006242812,-1171.6,0.00011996,2]
[323458799,1714006242821,-4508.08,0.00011996,2]
[323458800,1714006242831,-500.0,0.00011996,2]
[323458801,1714006242841,-500.0,0.00011996,2]
[323458802,1714006242850,-518.89,0.00011996,2]
[323458803,1714006242859,-500.0,0.00011996,2]
[323458804,1714006242868,-500.0,0.00011996,2]
[323458805,1714006242877,-186.97,0.00011996,2]
[323458806,1714006242886,-500.0,0.00011996,2]
[323458807,1714006242895,-500.0,0.00011996,2]
[323458808,1714006242904,-98.47221703,0.00011996,2]
[323458809,1714006242923,-428.11778297,0.00011996,2]
[323458810,1714006242933,-343.34,0.00011996,2]
[323458811,1714006242942,-561.71,0.00011996,2]
[323458812,1714006242951,-356170.80360288,0.00011997,2]
[323458813,1714006242960,-2920.32072,0.00011997,2]
[323458814,1714006242972,-701.077774,0.00011997,2]
[323458815,1714006242981,-701.077774,0.00011997,2]
[323458816,1714006242990,-2750.0,0.00012,2]
[323458817,1714006242999,-5000.0,0.00012,2]
[323458818,1714006243009,-5000.0,0.00012,2]
[323458819,1714006243018,-564.0,0.00012,2]
[323458820,1714006243027,-5000.0,0.00012013,2]
[323458821,1714006243036,-5000.0,0.00012013,2]
[323458822,1714006243045,-5000.0,0.00012025,2]
[323458823,1714006243055,-169.79,0.00012033,2]
[323458824,1714006243064,-5000.0,0.00012038,2]
[323458825,1714006243073,-5000.0,0.0001205,2]
[323458826,1714006243084,-5000.0,0.00012063,2]
[323458827,1714006243094,-171.0,0.0001209,2]
[323458828,1714006243109,-305.18,0.00012268,2]
[323458829,1714006243131,-500.0,0.00012268,2]
[323458830,1714006243143,-1809.22291569,0.00012269,3]
[323458831,1714006243152,-266.08,0.00012269,2]
[323458832,1714006243161,-500.0,0.00012269,2]
[323458833,1714006243170,-500.0,0.00012269,2]
[323458834,1714006243179,-500.0,0.00012269,2]
[323458835,1714006243188,-500.0,0.00012269,2]
[323458836,1714006243197,-162.99,0.00012269,2]
[323458837,1714006243207,-179.65010686,0.00012269,2]
[323458838,1714006243217,-500.0,0.00012269,2]
[323458839,1714006243226,-500.0,0.00012269,2]
[323458840,1714006243237,-500.0,0.00012269,2]
[323458841,1714006243247,-560.51,0.00012269,2]
[323458842,1714006243258,-583.58,0.00012269,2]
[323458843,1714006243267,-500.0,0.00012269,2]
[323458844,1714006243277,-500.0,0.00012269,2]
[323458845,1714006243287,-349.06,0.00012269,2]
[323458846,1714006243296,-500.0,0.00012269,2]
[323458847,1714006243305,-467.38,0.00012269,2]
[323458848,1714006243315,-839.65,0.00012269,2]
[323458849,1714006243324,-500.0,0.00012269,2]
[323458850,1714006243336,-500.0,0.00012269,2]
[323458851,1714006243345,-500.0,0.00012269,2]
[323458852,1714006243355,-304.32,0.00012269,2]
[323458853,1714006243365,-362.47,0.00012269,2]
[323458854,1714006243374,-500.0,0.00012269,2]
[323458855,1714006243384,-320.49,0.00012269,2]
[323458856,1714006243394,-561.16,0.00012269,2]
[323458857,1714006243404,-500.0,0.00012269,2]
[323458858,1714006243413,-631.96,0.00012269,2]
[323458859,1714006243422,-500.0,0.00012269,2]
[323458860,1714006243431,-500.0,0.00012269,2]
[323458861,1714006243440,-500.0,0.00012269,2]
[323458862,1714006243449,-500.0,0.00012269,2]
[323458863,1714006243460,-158.13,0.00012269,2]
[323458864,1714006243470,-502.27,0.00012269,2]
[323458865,1714006243480,-500.0,0.00012269,2]
[323458866,1714006243489,-343.95,0.00012269,2]
[323458867,1714006243499,-187.81,0.00012269,2]
[323458868,1714006243508,-500.0,0.00012269,2]
[323458869,1714006243517,-500.0,0.00012269,2]
[323458870,1714006243527,-500.0,0.00012269,2]
[323458871,1714006243536,-500.0,0.00012269,2]
[323458872,1714006243546,-601.83,0.00012269,2]
[323458873,1714006243555,-2790.66,0.00012269,2]
[323458874,1714006243564,-407.95,0.00012269,2]
[323458875,1714006243574,-500.0,0.00012269,2]
[323458876,1714006243586,-415.46,0.00012269,2]
[323458877,1714006243596,-445.46,0.00012269,2]
[323458878,1714006243605,-500.0,0.00012269,2]
[323458879,1714006243615,-296.75,0.00012269,2]
[323458880,1714006243624,-521.57,0.00012269,2]
[323458881,1714006243633,-500.0,0.00012269,2]
[323458882,1714006243644,-554.66,0.00012269,2]
[323458883,1714006243653,-500.0,0.00012269,2]
[323458884,1714006243663,-571.63,0.00012269,2]
[323458885,1714006243672,-500.0,0.00012269,2]
[323458886,1714006243682,-500.0,0.00012269,2]
[323458887,1714006243691,-253.61,0.00012269,2]
[323458888,1714006243700,-500.0,0.00012269,2]
[323458889,1714006243709,-572.09,0.00012269,2]
[323458890,1714006243719,-246.97,0.0001227,2]
[323458891,1714006243728,-304.34,0.0001227,2]
[323458892,1714006243737,-287.16,0.0001227,2]
[323458893,1714006243746,-429.81,0.0001227,2]
[323458894,1714006243755,-481.01,0.0001227,2]
[323458895,1714006243764,-723.14,0.0001227,2]
[323458896,1714006243776,-238.553084,0.0001227,2]
[323458897,1714006243785,-238.553084,0.0001227,2]
[323458898,1714006243795,-607.38,0.0001227,2]
[323458899,1714006243805,-280.75,0.0001227,2]
[323458900,1714006243815,-500.0,0.0001227,2]
[323458901,1714006243825,-480.111641,0.0001227,2]
[323458902,1714006243836,-180.83,0.0001227,2]
[323458903,1714006243847,-500.0,0.0001227,2]
[323458904,1714006243856,-500.0,0.0001227,2]
[323458905,1714006243867,-500.0,0.0001227,2]
[323458906,1714006243876,-500.0,0.0001227,2]
[323458907,1714006243886,-373.39,0.0001227,2]
[323458908,1714006243895,-500.0,0.0001227,2]
[323458909,1714006243904,-618.9,0.0001227,2]
[323458910,1714006243914,-500.0,0.0001227,2]
[323458911,1714006243923,-500.0,0.0001227,2]
[323458912,1714006243933,-500.0,0.0001227,2]
[323458913,1714006243942,-701.077774,0.0001227,2]
[323458914,1714006243952,-223.23,0.0001227,2]
[323458915,1714006243963,-701.077774,0.0001227,2]
[323458916,1714006243975,-500.0,0.0001227,2]
[323458917,1714006243985,-500.0,0.0001227,2]
[323458918,1714006243995,-156.49,0.0001227,2]
[323458919,1714006244004,-500.0,0.0001227,2]
[323458920,1714006244013,-500.0,0.0001227,2]
[323458921,1714006244022,-1171.6,0.0001227,2]
[323458922,1714006244032,-4508.08,0.0001227,2]
[323458923,1714006244045,-500.0,0.0001227,2]
[323458924,1714006244055,-500.0,0.0001227,2]
[323458925,1714006244064,-500.0,0.0001227,2]
[323458926,1714006244074,-500.0,0.0001227,2]
[323458927,1714006244084,-201.02,0.0001227,2]
[323458928,1714006244093,-503.0,0.00012274,2]
[323458929,1714006244102,-562.0,0.00012301,2]
[323458930,1714006244111,-910.37,0.00012431,2]
[323458931,1714006244120,-522.07,0.00012488,2]
[323458932,1714006244130,-150.0,0.00012488,2]
[323458933,1714006244139,-325.4,0.00012488,2]
[323458934,1714006244148,-150.0,0.00012488,2]
[323458935,1714006244157,-150.0,0.00012488,2]
[323458936,1714006244167,-350.47,0.00012488,2]
[323458937,1714006244176,-159.96,0.00012488,2]
[323458938,1714006244185,-150.0,0.00012488,2]
[323458939,1714006244194,-150.0,0.00012488,2]
[323458940,1714006244204,-350.47,0.00012488,2]
[323458941,1714006244214,-150.0,0.00012488,2]
[323458942,1714006244223,-522.07,0.00012488,2]
[323458943,1714006244233,-150.0,0.00012488,2]
[323458944,1714006244242,-150.0,0.00012488,2]
[323458945,1714006244251,-350.47,0.00012488,2]
[323458946,1714006244260,-522.07,0.00012488,2]
[323458947,1714006244270,-150.0,0.00012488,2]
[323458948,1714006244279,-522.07,0.00012488,2]
[323458949,1714006244288,-150.0,0.00012488,2]
[323458950,1714006244297,-150.0,0.00012488,2]
[323458951,1714006244307,-150.0,0.00012488,2]
[323458952,1714006244316,-522.07,0.00012488,2]
[323458953,1714006244326,-150.0,0.00012488,2]
[323458954,1714006244337,-150.0,0.00012488,2]
[323458955,1714006244346,-150.0,0.00012488,2]
[323458956,1714006244356,-300.0,0.00012488,2]
[323458957,1714006244366,-5000.0,0.00012502,2]
[323458958,1714006244377,-5000.0,0.00012502,2]
[323458959,1714006244386,-4473.0873351,0.00012502,2]
[323458960,1714006244407,-478.70000222,0.00012502,2]
[323458961,1714006244419,-48.21266268,0.00012502,2]
[323458962,1714006244429,-5000.0,0.00012502,2]
[323458963,1714006244438,-5000.0,0.00012502,2]
[323458964,1714006244448,-500.0,0.00012542,2]
[323458965,1714006244457,-245.79,0.00012543,2]
[323458966,1714006244468,-164.00562426,0.00012543,2]
[323458967,1714006244481,-178.03437574,0.00012543,2]
[323458968,1714006244490,-350.8,0.00012543,2]
[323458969,1714006244499,-75.67854188,0.00012543,2]
[323458970,1714006244519,-424.32145812,0.00012543,2]
[323458971,1714006244528,-500.0,0.00012543,2]
[323458972,1714006244538,-196.18,0.00012543,2]
[323458973,1714006244548,-500.0,0.00012543,2]
[323458974,1714006244557,-60.40455674,0.00012543,2]
[323458975,1714006244569,-500.10544326,0.00012543,2]
[323458976,1714006244579,-500.0,0.00012543,2]
[323458977,1714006244590,-12.4225352,0.00012543,2]
[323458978,1714006244602,-406.2374648,0.00012543,2]
[323458979,1714006244612,-397.60263512,0.00012543,2]
[323459010,1714006246074,-155.0,8.792e-05,2]
[323459011,1714006246086,-425.84,0.00011995,2]
[323459012,1714006246132,-195.81874202,0.00011995,2]
[323459013,1714006246142,-500.0,0.00011996,2]
[323459014,1714006246152,-48.29628861,0.0001227,2]
[323459015,1714006246188,-451.70371139,0.0001227,2]
[323459016,1714006246197,-102.39736488,0.00012543,2]
[323459017,1714006246207,-839.65,0.00012543,2]
[323459018,1714006246216,-286.87,0.00012543,2]
[323459019,1714006246225,-480.93,0.00012543,2]
[323459020,1714006246234,-500.0,0.00012543,2]
[323459021,1714006246243,-500.0,0.00012543,2]
[323459022,1714006246253,-561.16,0.00012543,2]
[323459023,1714006246262,-639.18,0.00012543,2]
[323459024,1714006246271,-500.0,0.00012543,2]
[323459025,1714006246280,-500.0,0.00012543,2]
[323459026,1714006246290,-500.0,0.00012543,2]
[323459027,1714006246300,-502.27,0.00012543,2]
[323459028,1714006246310,-489.99,0.00012543,2]
[323459029,1714006246320,-274.77,0.00012543,2]
[323459030,1714006246330,-500.0,0.00012543,2]
[323459031,1714006246340,-500.0,0.00012543,2]
[323459032,1714006246350,-500.0,0.00012543,2]
[323459033,1714006246360,-1999.93237665,0.00012543,2]
[323459034,1714006246375,-790.72762335,0.00012543,2]
[323459035,1714006246386,-69.96284569,0.00012543,2]
[323459036,1714006246397,-430.03715431,0.00012543,2]
[323459037,1714006246408,-500.0,0.00012543,2]
[323459038,1714006246417,-500.0,0.00012543,2]
[323459039,1714006246427,-500.0,0.00012543,2]
[323459040,1714006246437,-500.0,0.00012543,2]
[323459041,1714006246447,-400.22,0.00012543,2]
[323459042,1714006246458,-500.0,0.00012543,2]
[323459043,1714006246468,-723.14,0.00012544,2]
[323459044,1714006246478,-500.0,0.00012544,2]
[323459045,1714006246487,-500.0,0.00012544,2]
[323459046,1714006246497,-97.18648039,0.00012544,2]
[323459049,1714007202872,2627.19890452,0.00025975,90]
[323459055,1714007431925,-442.89811174,8.791e-05,2]
[323459056,1714007432039,-178.76063028,8.791e-05,2]
[323459057,1714007432049,-537.83325035,8.792e-05,2]
[323459058,1714007432060,-1496.00273193,8.792e-05,2]
[323459059,1714007432070,-155.66818329,8.792e-05,2]
[323459060,1714007432079,-317.82,9.837e-05,2]
[323459061,1714007432088,-200.0,0.00011656,2]
[323459062,1714007432098,-487.58939828,0.00011676,2]
[323459069,1714007438001,-8008.72376092,0.00011676,2]
[323459081,1714007439919,-1393.57538644,0.00011676,2]
[323459082,1714007439932,-408.08471307,0.00011676,2]
[323459083,1714007439943,-725.48609948,0.00011676,2]
[323459084,1714007439955,-372.02059962,0.00011676,2]
[323459085,1714007439969,-1105.6190052,0.00011676,2]
[323459086,1714007439981,-2959.64473179,0.00011676,2]
[323459087,1714007440135,-2631.5263052,0.00011676,2]
[323459088,1714007440145,-1000.0,0.00011682,2]
[323459089,1714007440155,-1006.26,0.0001173,2]
[323459090,1714007440165,-164.57,0.00011734,2]
[323459091,1714007440176,-500.0,0.00011995,2]
[323459092,1714007440185,-500.0,0.00011995,2]
[323459093,1714007440195,-500.0,0.00011995,2]
[323459094,1714007440206,-292.91,0.00011996,2]
[323459095,1714007440216,-1185.27019617,0.00012,2]
[323459096,1714007440232,-1564.72980383,0.00012,2]
[323459097,1714007440242,-176.0,0.0001209,2]
[323459098,1714007440252,-419.16,0.000121,2]
[323459099,1714007440261,-376.21227617,0.000121,2]
[323459106,1714007442743,-42.94772383,0.000121,2]
[323459107,1714007442752,-418.56,0.000121,2]
[323459108,1714007442761,-38.49227617,0.00012101,2]
[323459109,1714007443112,-279.32772383,0.00012101,2]
[323459110,1714007443121,-500.0,0.00012269,2]
[323459111,1714007443131,-112.70444662,0.00012269,2]
[323459114,1714007445712,-387.29555338,0.00012269,2]
[323459115,1714007445721,-29.81444662,0.00012269,2]
[323459116,1714007445880,-470.18555338,0.00012269,2]
[323459117,1714007445890,-148.11444638,0.00012328,2]
[323459118,1714007445931,-354.88555362,0.00012328,2]
[323459119,1714007445940,-71.34210318,0.00012418,2]
[323459120,1714007446038,-92.92837772,0.00012418,2]
[323459121,1714007446050,-295.75939914,0.0001242,2]
[323459140,1714008631878,-621.65874202,9.884e-05,2]
[323459141,1714008631889,-310.36,9.885e-05,2]
[323459143,1714008631899,-800.0,0.00011773,2]
[323459145,1714008631909,-150.0,0.00011789,2]
[323459147,1714008631922,-1033.58,0.00011841,2]
[323459149,1714008631933,-200.0,0.00011915,2]
[323459151,1714008631944,-2750.0,0.00012,2]
[323459152,1714008631955,-308.39,0.00012,2]
[323459154,1714008631965,-806.39,0.00012,2]
[323459155,1714008631976,-180.0,0.0001209,2]
[323459156,1714008631986,-200.0,0.000121,4]
[323459157,1714008631998,-310.36,0.00012149,2]
[323459158,1714008632010,-500.0,0.000122,4]
[323459159,1714008632021,-299.99,0.00012418,2]
[323459160,1714008632032,-22.24060086,0.0001242,2]
[323459161,1714008632043,-546.7930402,0.0001242,2]
[323459162,1714008632054,-19678.99862144,0.0001242,2]
[323459163,1714008632065,-2433.6006,0.0001242,2]
[323459164,1714008632075,-1453.08964971,0.00012451,2]
[323459165,1714008632086,-30000.0,0.00012512,2]
[323459166,1714008632097,-205.09669917,0.00012543,2]
[323459167,1714008632109,-2288.14062346,0.00012543,2]
[323459168,1714008632120,-180.0,0.0001277,2]
[323459169,1714008632132,-234.1676,0.00012779,2]
[323459170,1714008632143,-7500.0,0.0001278,2]
[323459171,1714008632156,-958.78609238,0.0001278,2]
[323459172,1714008632170,-2006.89501884,0.00012784,2]
[323459173,1714008632182,-186.67421876,0.00012784,2]
[323459174,1714008632194,-531.07271001,0.00012784,2]
[323459175,1714008632204,-531.07270989,0.00012792,2]
[323459176,1714008632217,-2006.89501882,0.00012795,2]
[323459177,1714008632229,-4182.80993324,0.00012798,2]
[323459178,1714008632240,-1435.975,0.00012798,2]
[323459179,1714008632251,-380.3,0.000128,2]
[323459180,1714008632267,-85783.91227104,0.000128,5]
[323459181,1714008632278,-1349.0,0.000128,2]
[323459182,1714008632289,-1349.0,0.000128,2]
[323459183,1714008632300,-1349.0,0.000128,2]
[323459184,1714008632311,-1349.0,0.000128,2]
[323459185,1714008632322,-1349.0,0.000128,2]
[323459186,1714008632332,-1349.0,0.000128,2]
[323459187,1714008632343,-1349.0,0.000128,2]
[323459189,1714008632354,-1349.0,0.000128,2]
[323459192,1714008632365,-1349.0,0.000128,2]
[323459193,1714008632375,-1349.0,0.000128,2]
[323459196,1714008632386,-440.0,0.000128,2]
[323459198,1714008632396,-256.6,0.000128,2]
[323459199,1714008632407,-352.0,0.000128,2]
[323459202,1714008632417,-1000.0,0.000128,2]
[323459203,1714008632428,-477.15166581,0.000128,2]
[323459205,1714008632438,-531.07270989,0.00012801,2]
[323459208,1714008632450,-2006.89501882,0.00012805,2]
[323459210,1714008632460,-531.07270989,0.00012809,2]
[323459212,1714008632472,-2006.89501882,0.00012816,2]
[323459214,1714008632483,-531.07270989,0.00012817,2]
[323459215,1714008632493,-531.07270989,0.00012825,2]
[323459218,1714008632504,-2006.89501882,0.00012826,2]
[323459220,1714008632516,-531.07270989,0.00012834,2]
[323459222,1714008632527,-2006.89501882,0.00012837,2]
[323459223,1714008632536,-531.07270989,0.00012842,2]
[323459224,1714008632546,-2006.89501882,0.00012847,2]
[323459225,1714008632556,-531.07270989,0.0001285,2]
[323459226,1714008632566,-2006.89501882,0.00012858,2]
[323459227,1714008632576,-531.07270989,0.00012859,2]
[323459228,1714008632587,-161.60148434,0.00012865,2]
[323459229,1714008632596,-531.07270989,0.00012867,2]
[323459230,1714008632606,-2006.89501882,0.00012868,2]
[323459231,1714008632616,-531.07270989,0.00012875,2]
[323459232,1714008632625,-2149.4401691,0.00012878,2]
[323459233,1714008632635,-2006.89501882,0.00012879,2]
[323459234,1714008632647,-500.0,0.00012879,2]
[323459235,1714008632658,-632.75,0.00012879,2]
[323459236,1714008632668,-500.0,0.00012879,2]
[323459237,1714008632682,-542.6,0.00012879,2]
[323459238,1714008632693,-176.73,0.00012879,2]
[323459239,1714008632703,-503.45351961,0.00012879,2]
[323459240,1714008632714,-500.0,0.00012879,2]
[323459241,1714008632726,-162.79368888,0.00012879,2]
[323459242,1714008632735,-500.0,0.00012879,2]
[323459243,1714008632746,-500.0,0.00012879,2]
[323459244,1714008632760,-500.0,0.00012879,2]
[323459245,1714008632770,-500.0,0.00012879,2]
[323459246,1714008632779,-500.0,0.00012879,2]
[323459247,1714008632789,-500.0,0.00012879,2]
[323459248,1714008632799,-500.0,0.00012879,2]
[323459249,1714008632813,-734.7,0.00012879,2]
[323459250,1714008632825,-500.0,0.00012879,2]
[323459251,1714008632836,-500.0,0.00012879,2]
[323459252,1714008632847,-500.0,0.00012879,2]
[323459253,1714008632858,-500.0,0.00012879,2]
[323459254,1714008632869,-500.0,0.00012879,2]
[323459255,1714008632883,-1073.97,0.00012879,2]
[323459256,1714008632893,-500.0,0.00012879,2]
[323459257,1714008632902,-500.0,0.00012879,2]
[323459258,1714008632911,-500.0,0.00012879,2]
[323459259,1714008632921,-500.0,0.00012879,2]
[323459260,1714008632930,-500.0,0.00012879,2]
[323459261,1714008632940,-500.0,0.00012879,2]
[323459262,1714008632950,-500.0,0.00012879,2]
[323459263,1714008632960,-500.0,0.00012879,2]
[323459264,1714008632970,-4132.4,0.00012879,2]
[323459265,1714008632980,-458.92338205,0.00012879,2]
[323459266,1714008632990,-500.0,0.00012879,2]
[323459267,1714008633000,-274.28420928,0.00012879,2]
[323459268,1714008633011,-500.0,0.00012879,2]
[323459269,1714008633020,-500.0,0.00012879,2]
[323459270,1714008633030,-500.0,0.00012879,2]
[323459271,1714008633040,-500.0,0.00012879,2]
[323459272,1714008633049,-500.0,0.00012879,2]
[323459273,1714008633059,-2441.83,0.00012879,2]
[323459274,1714008633068,-500.0,0.00012879,2]
[323459275,1714008633077,-500.0,0.00012879,2]
[323459276,1714008633088,-500.0,0.00012879,2]
[323459277,1714008633098,-500.0,0.00012879,2]
[323459278,1714008633109,-500.0,0.00012879,2]
[323459279,1714008633119,-565.90830901,0.00012879,2]
[323459280,1714008633129,-200.33197903,0.00012879,2]
[323459281,1714008633139,-500.0,0.00012879,2]
[323459282,1714008633148,-562.0,0.0001288,2]
[323459283,1714008633158,-21808.93867578,0.0001288,2]
[323459284,1714008633231,-712.8,0.0001288,2]
[323459285,1714008633243,-1723.49402903,0.0001288,2]
[323459286,1714008633285,-1592.358,0.0001288,2]
[323459287,1714008633297,-300.24358755,0.0001288,2]
[323459288,1714008633324,-7535.33629822,0.0001288,2]
[323459289,1714008633338,-387.1825779,0.0001288,2]
[323459290,1714008633351,-3189.83507936,0.0001288,2]
[323459291,1714008633363,-306.01595469,0.0001288,2]
[323459292,1714008633376,-1615.22,0.0001288,2]
[323459293,1714008633389,-673.20372,0.0001288,2]
[323459301,1714008637917,-151.0,9.883e-05,2]
[323459302,1714008637927,-113.818801,0.000123,4]
[323459303,1714008637980,-586.181199,0.000123,4]
[323459304,1714008637991,-1000.0,0.000124,4]
[323459305,1714008638000,-1200.0,0.000125,4]
[323459306,1714008638011,-1909.93974381,0.00012543,2]
[323459307,1714008638021,-27575.25582007,0.0001288,2]
[323459308,1714008640084,-200.0,0.000126,4]
[323459309,1714008640094,-6394.58941241,0.0001288,2]
[323459310,1714008640210,-1313.31,0.0001288,2]
[323459311,1714008640222,-743.89666951,0.0001288,2]
[323459312,1714008640429,-594.93017995,0.0001288,2]
[323459313,1714008640441,-3168.22428984,0.0001288,2]
[323459314,1714008640454,-33635.97827059,0.0001288,2]
[323459325,1714008643125,-301.41,0.00010098,2]
[323459326,1714008643136,-301.41,0.00012362,2]
[323459327,1714008643146,-200.0,0.000127,4]
[323459328,1714008643157,-33.78016149,0.00012879,2]
[323459329,1714008646271,-164.37354978,0.00012751,2]
[323459330,1714008646281,-200.0,0.000128,4]
[323459331,1714008646291,-1557.83629169,0.00012879,2]
[323459332,1714008646301,-1585.98642626,0.00012879,2]
[323459333,1714008646311,-3228.96856628,0.0001288,2]
[323459338,1714008649547,170.51800153,0.00025975,90]
[323459339,1714008814104,1282.0,0.0002597,90]
[323459340,1714008982820,680.61968361,0.00025975,90]
[323459341,1714009050773,995.0,0.00025975,91]
[323459342,1714009374424,257841.69594526,0.000129,60]
[323459343,1714009374449,1000.0,0.000129,60]
[323459344,1714009374479,181161.94595121,0.000129,60]
[323459345,1714009457618,1181.8098414,0.0002,60]
[323459346,1714009801593,31237.48492911,0.00025975,90]
[323459348,1714009832036,-444.68589121,9.773e-05,2]
[323459349,1714009832050,-621.73302935,9.774e-05,2]
[323459350,1714009832060,-304.65,9.777e-05,2]
[323459351,1714009832070,-42.09551144,0.0001,2]
[323459352,1714009832082,-340.88607112,0.0001,2]
[323459353,1714009832094,-588.63653674,0.00011659,2]
[323459354,1714009832198,-472.59346326,0.00011659,2]
[323459355,1714009832208,-191.2299,0.00011693,2]
[323459356,1714009832219,-175.01,0.00011708,2]
[323459357,1714009832229,-363.18009928,0.00011771,2]
[323459358,1714009832258,-253.75560811,0.00011771,2]
[323459359,1714009832310,-383.06429261,0.00011771,2]
[323459360,1714009832321,-266.76,0.00011913,2]
[323459361,1714009832330,-1000.0,0.00012,2]
[323459362,1714009832342,-304.65,0.00012041,2]
[323459363,1714009832352,-413.76,0.00012055,2]
[323459364,1714009832363,-1323.79,0.00012055,2]
[323459365,1714009832373,-413.76,0.000121,2]
[323459366,1714009832384,-412.74,0.000121,2]
[323459367,1714009832395,-504.0,0.00012301,2]
[323459368,1714009832406,-670.64,0.00012341,2]
[323459369,1714009832417,-910.54,0.00012341,2]
[323459370,1714009832426,-910.54,0.00012341,2]
[323459371,1714009832435,-910.54,0.00012341,2]
[323459372,1714009832444,-910.54,0.00012341,2]
[323459374,1714009832455,-188.0,0.0001261,2]
[323459381,1714009832788,-5017.09711108,0.00012615,2]
[323459382,1714009832811,-346.5418,0.0001268,2]
[323459383,1714009832829,-210.0158,0.0001268,2]
[323459384,1714009832838,-1064.4568,0.000127,2]
[323459385,1714009832848,-164.37354978,0.00012751,2]
[323459386,1714009832857,-15053.8252355,0.00012769,2]
[323459387,1714009832866,-1000.0,0.00012776,2]
[323459388,1714009832876,-500.0,0.00012776,2]
[323459389,1714009832885,-1000.0,0.00012777,2]
[323459390,1714009832895,-500.0,0.00012777,2]
[323459391,1714009832904,-1000.0,0.00012777,2]
[323459392,1714009832913,-1000.0,0.00012777,2]
[323459393,1714009832922,-500.0,0.00012777,2]
[323459394,1714009832931,-500.0,0.00012777,2]
[323459395,1714009832940,-32169.9319,0.00012779,2]
[323459396,1714009832950,-78903.8473,0.0001278,2]
[323459397,1714009832959,-44449.577,0.0001278,2]
[323459398,1714009832968,-3965.2545,0.0001278,2]
[323459399,1714009832978,-3361.113,0.0001278,2]
[323459400,1714009832987,-7500.0,0.0001278,2]
[323459401,1714009832996,-799.06328448,0.0001278,2]
[323459402,1714009833009,-799.06328443,0.00012789,2]
[323459403,1714009833018,-799.06328443,0.00012797,2]
[323459404,1714009833026,-531.75213971,0.000128,2]
[323459405,1714009833035,-357.81521777,0.000128,2]
[323459406,1714009833046,-839.0,0.000128,2]
[323459407,1714009833055,-1000.0,0.000128,2]
[323459408,1714009833064,-799.06328443,0.00012806,2]
[323459409,1714009833073,-357.81521769,0.00012809,2]
[323459410,1714009833083,-799.06328443,0.00012814,2]
[323459411,1714009833092,-357.81521769,0.00012818,2]
[323459412,1714009833101,-799.06328443,0.00012823,2]